Cogmind - Beta 16 @@@ ROGUE MODE // 2025.11.04 @ 19:37:28 Player: Triffids Result: Self-destructed Performance ------------- Evolutions (2) 1000 Regions Visited (4) 800 Robots Destroyed (14) 70 Value Destroyed (320) 320 Prototype IDs (0) 0 Alien Tech Used (0) 0 Bonus (0) 0 TOTAL SCORE: 2190 Bonus ------- None Cogmind --------- Core Integrity 520/550 Matter 290/300 Energy 152/160 System Corruption 0% Temperature Cool (33) Movement Rolling (85) Ox1 Location -8/Materials Parts ------- > --- POWER (1) -------- Light Nuclear Core > --- PROPULSION (2) --- Wheel Wheel > --- UTILITY (6) ------ Improved Heat Sink Sensor Array Signal Interpreter Improved Terrain Scanner Terrain Scan Processor Light Armor Plating > --- WEAPON (2) ------- Subdweller Laser Subdweller Beam Cannon > --- INVENTORY (5) ---- Wheel Wheel EM Pulse Cannon Heavy Assault Rifle Mining Laser Peak State ------------ > --- POWER ------------ Light Nuclear Core > --- PROPULSION ------- Wheel Wheel > --- UTILITY ---------- Improved Heat Sink Sensor Array Signal Interpreter Improved Terrain Scanner Terrain Scan Processor Light Armor Plating > --- WEAPON ----------- Subdweller Laser Subdweller Beam Cannon > --- INVENTORY -------- Wheel Wheel EM Pulse Cannon Heavy Assault Rifle Mining Laser [Rating: 20] Favorites ----------- Power Ion Engine Engine Ion Engine Power Core Light Nuclear Core Propulsion Wheel Wheel Wheel Utility Small Storage Unit Device Seismic Detector Storage Small Storage Unit Processor Terrain Scan Processor Protection Light Armor Plating Weapon Assault Rifle Energy Gun Particle Gun Energy Cannon Subdweller Beam Cannon Ballistic Gun Assault Rifle Special Weapon Mining Laser Build | -11 -10 -10 -10 -8 ------- Run | Yrd Mat Min Sub Mat Slots Evolved 4 | . . . . 4 Power . | . . . . . Propulsion . | . . . . . Utility 4 | . . . . 4 Weapon . | . . . . . Parts Attached 20 | 7 3 4 2 4 Power 2 | 1 . 1 . . Engine 1 | 1 . . . . Core 1 | . . 1 . . Reactor . | . . . . . Propulsion 3 | 2 . 1 . . Treads . | . . . . . Leg . | . . . . . Wheel 3 | 2 . 1 . . Hover . | . . . . . Flight . | . . . . . Utility 8 | 2 . 2 . 4 Device 4 | 1 . 1 . 2 Storage 1 | 1 . . . . Processor 2 | . . 1 . 1 Hackware . | . . . . . Protection 1 | . . . . 1 Artifact . | . . . . . Weapon 7 | 2 3 . 2 . Energy Gun 3 | 1 1 . 1 . Energy Cannon 1 | . . . 1 . Ballistic Gun 1 | 1 . . . . Ballistic Cannon . | . . . . . Launcher . | . . . . . Special Weapon 2 | . 2 . . . Impact Weapon . | . . . . . Slashing Weapon . | . . . . . Piercing Weapon . | . . . . . Special Melee Weapon . | . . . . . Unidentified Prototypes . | . . . . . Parts Lost . | . . . . . Power . | . . . . . Propulsion . | . . . . . Utility . | . . . . . Weapon . | . . . . . Highest Loss Streak . | . . . . . To Critical Strikes . | . . . . . Average Backups 5 | 3 7 7 5 4 Power . | . 1 . . . Propulsion 1 | . 2 1 1 1 Utility 2 | . 2 3 3 . Weapon 1 | 1 1 1 1 2 Tool/Special . | . . . . . Unused Backups 7 | . 3 . . 4 Power 1 | . 1 . . . Propulsion 3 | . 1 . . 2 Utility . | . . . . . Weapon 3 | . 1 . . 2 Tool/Special . | . . . . . Average Slot Usage (%) 98 | . 100 99 100 91 Engine 6 | . 14 9 . . Core 7 | . . 4 14 9 Wheel 26 | . 28 28 28 18 Device 16 | . 14 14 14 26 Storage 6 | . 14 10 . . Processor 8 | . . 2 14 17 Energy Gun 12 | . 11 14 13 9 Energy Cannon 4 | . . . 9 9 Ballistic Gun 8 | . 14 14 4 . Peak Build Rating 20 | 7 9 13 14 20 Average Rating 11 | 5 8 10 13 19 On Entrance 8 | . 7 8 13 14 Avg Prop Armor Cover (%) 33 | 33 . . . . Naked Turns . | . . . . . Heaviest Build 23 | 15 16 16 18 23 Greatest Support 20 | 20 20 20 20 20 Greatest Overweight (x) 1 | . . . . 1 Average Overweight (x) . | . . . . . Largest Inventory Capacity 8 | 8 8 8 5 5 Average Capacity 6 | 7 8 7 5 5 Most Carried 8 | 7 8 8 5 5 Average Carried 5 | 3 7 6 5 4 Final Capacity 8 | 8 8 5 5 5 Final Carried 8 | 7 8 5 5 5 Class Distribution -------------------- 51% | Mutant 34% | Scavenger-Mutant 14% | Scavenger-Skirmisher Dominant Class ---------------- Mutant | -10/Materials Mutant | -10/Mines Scavenger-Mutant | -10/Subcaves Scavenger-Skirmisher | -8/Materials Resources | -11 -10 -10 -10 -8 ----------- Run | Yrd Mat Min Sub Mat Matter Collected 491 | 306 37 88 30 30 Remotely . | . . . . . Salvage Created 508 | 78 151 111 . 168 Parts 39 | 12 6 10 . 11 Haulers Intercepted . | . . . . . Recyclers Shooed 2 | . 1 1 . . Parts Field Recycled . | . . . . . Retrieved Matter . | . . . . . Parts Self-Destructed 9 | . . . 9 . Prevented . | . . . . . Parts Restored . | . . . . . Kills | -11 -10 -10 -10 -8 ------- Run | Yrd Mat Min Sub Mat Combat Hostiles Destroyed 6 | . 3 . . 3 Guns 3 | . 3 . . . Cannons 3 | . . . . 3 Classes Destroyed 6 | 1 2 2 . 1 Builder 2 | . . 2 . . Tunneler 4 | 4 . . . . Recycler 1 | . . 1 . . Watcher 1 | . 1 . . . Grunt 3 | . 3 . . . Sentry 3 | . . . . 3 Best Kill Streak 3 | 2 2 3 . 2 Combat Bots Only 2 | . 2 . . 2 Max Kills in Single Turn 1 | 1 1 1 . 1 Gunslinging . | . . . . . Exploded . | . . . . . Melee . | . . . . . Uniques/NPCs Destroyed . | . . . . . Combat | -11 -10 -10 -10 -8 -------- Run | Yrd Mat Min Sub Mat Hostile Shots Fired 36 | . 30 . . 6 Missed 11 | . 9 . . 2 Hits 25 | . 21 . . 4 Projectile 25 | . 21 . . 4 Damage Taken 253 | . 195 . . 58 Core 95 | . 65 . . 30 Absorbed by Shields . | . . . . . Core Remaining (%) 87 | 100 . . 74 . Volleys Fired 35 | 12 11 6 1 5 Largest 2 | 2 2 2 1 2 Hottest 140 | 70 100 85 100 140 Shots Fired 66 | 24 20 11 1 10 Gun 58 | 24 18 11 . 5 Cannon 5 | . . . . 5 Launcher . | . . . . . Special 3 | . 2 . 1 . Kinetic 27 | 12 9 6 . . Thermal 39 | 12 11 5 1 10 Explosive . | . . . . . Electromagnetic . | . . . . . Robot Hit Streak 11 | 3 11 2 . 7 Robot Miss Streak 2 | 2 1 2 . 1 Penetration Max . | . . . . . Secondary Targets . | . . . . . Shots Hit Robots 41 | 13 14 6 . 8 Core Hits 19 | 4 8 4 . 3 Critical Kills . | . . . . . Critical Parts Destroyed . | . . . . . Critical Strikes . | . . . . . Melee Attacks . | . . . . . Impact . | . . . . . Slashing . | . . . . . Piercing . | . . . . . Sneak Attacks . | . . . . . Combat Hostiles . | . . . . . Follow-up Attacks . | . . . . . Damage Inflicted 606 | 152 178 82 . 194 Guns 475 | 152 178 82 . 63 Cannons 131 | . . . . 131 Explosions . | . . . . . Melee . | . . . . . Ramming . | . . . . . Kinetic 244 | 90 117 37 . . Thermal 362 | 62 61 45 . 194 Explosive . | . . . . . Electromagnetic . | . . . . . Impact . | . . . . . Slashing . | . . . . . Piercing . | . . . . . Highest Corruption . | . . . . . Average Corruption . | . . . . . Corruption Purged . | . . . . . Corruption Blocked . | . . . . . Overload Shots . | . . . . . Overflow Damage . | . . . . . Projectiles . | . . . . . Explosions . | . . . . . Melee . | . . . . . Knockbacks . | . . . . . Impact . | . . . . . Kinetic . | . . . . . Secondary . | . . . . . Self-Inflicted Damage . | . . . . . Shots . | . . . . . Rammed . | . . . . . Targets Rammed . | . . . . . Kicked . | . . . . . Crushed . | . . . . . Highest Temperature 60 | 45 54 60 . 57 Average Temperature 22 | 20 21 26 . 25 Received Heat Transfer 51 | . 33 . . 18 Siege Activations . | . . . . . Martial Activations . | . . . . . Shielding Activations . | . . . . . Robots Disrupted . | . . . . . Combat Hostiles . | . . . . . Robots Corrupted . | . . . . . Combat Hostiles . | . . . . . Parts Fried . | . . . . . Impact Corruptions . | . . . . . Robots Melted . | . . . . . Combat Hostiles . | . . . . . Parts Melted . | . . . . . Heat Transferred 741 | 185 185 111 . 260 Parts Sabotaged . | . . . . . Parts Stolen . | . . . . . Parts Stripped . | . . . . . Power Chain Reactions . | . . . . . Alert | -11 -10 -10 -10 -8 ------- Run | Yrd Mat Min Sub Mat Maximum Alert Level . | . . . . . Low Security (%) 100 | 100 100 100 . 100 Level 1 . | . . . . . Level 2 . | . . . . . Level 3 . | . . . . . Level 4 . | . . . . . Level 5 . | . . . . . High Security . | . . . . . Max Security . | . . . . . Peak Influence 67 | 10 67 22 . 60 Initial 22 | . . 22 . . Average 15 | 1 31 5 . 17 Influence Increases 273 | 20 148 15 . 90 Destroy 0b10 Robot/C 120 | . 60 . . 60 Destroy 0b10 Robot/NC 40 | 20 5 15 . . Destroy Leader 52 | . 22 . . 30 Successful Hack 15 | . 15 . . . Disable Machine 15 | . 15 . . . Destroy Structure 1 | . 1 . . . Lose Combat Pursuer 30 | . 30 . . . Influence Decreases 213 | 20 90 73 . 30 Entered New Map 36 | . . 36 . . Time Decay 167 | 20 80 37 . 30 Lost Ally 10 | . 10 . . . Squads Dispatched 4 | . 2 . . 2 Investigation 1 | . . . . 1 Extermination . | . . . . . Reinforcement 3 | . 2 . . 1 Assault . | . . . . . Garrison . | . . . . . Intercept . | . . . . . Searches Triggered . | . . . . . Construction Impeded . | . . . . . Haulers Reinforced . | . . . . . Active Scanning Responses . | . . . . . Cargo Convoy Interrupts . | . . . . . Stealth | -11 -10 -10 -10 -8 --------- Run | Yrd Mat Min Sub Mat Distress Signals . | . . . . . Communications Jammed . | . . . . . Distress Signals . | . . . . . Times Spotted 13 | . 9 . . 4 Peak Tracking Total 4 | . 4 . . 2 Tactical Retreats 1 | . 1 . . . Traps | -11 -10 -10 -10 -8 ------- Run | Yrd Mat Min Sub Mat Traps Triggered . | . . . . . Indirectly . | . . . . . Trap Hack Attempts . | . . . . . Triggered . | . . . . . Disarmed . | . . . . . Reprogrammed . | . . . . . Reused . | . . . . . Traps Extracted . | . . . . . Installed . | . . . . . Triggered . | . . . . . Machines | -11 -10 -10 -10 -8 ---------- Run | Yrd Mat Min Sub Mat Machines Disabled 1 | . 1 . . . Max in Single Turn 1 | . 1 . . . Machines Repaired . | . . . . . Machines Dismantled . | . . . . . Machines Sabotaged . | . . . . . Overloaded Fab Kills . | . . . . . Hacking | -11 -10 -10 -10 -8 --------- Run | Yrd Mat Min Sub Mat Machines Accessed 5 | . 2 . . 3 Terminals 3 | . 1 . . 2 Fabricators . | . . . . . Repair Stations . | . . . . . Recycling Units 1 | . 1 . . . Scanalyzers 1 | . . . . 1 Garrison Access . | . . . . . Total Hacks 19 | . 11 . . 8 Successful 7 | . 6 . . 1 Failed 11 | . 5 . . 6 Catastrophic 1 | . . . . 1 Database Lockouts 1 | . . . . 1 Manual 6 | . 4 . . 2 Terminals 12 | . 8 . . 4 Fabricators . | . . . . . Repair Stations . | . . . . . Recycling Units 3 | . 3 . . . Scanalyzers 4 | . . . . 4 Garrison Access . | . . . . . Terminal Hacks 3 | . 3 . . . Branch Access Points 1 | . 1 . . . Emergency Access Points 1 | . 1 . . . Terminal Index 1 | . 1 . . . Fabricator Hacks . | . . . . . Repair Station Hacks . | . . . . . Recycling Unit Hacks 1 | . 1 . . . Report Inventory 1 | . 1 . . . Scanalyzer 1 | . . . . 1 Retrieve Study 1 | . . . . 1 Garrison Access Hacks . | . . . . . Unauthorized Hacks 2 | . 2 . . . Terminals 2 | . 2 . . . Assimilate 1 | . 1 . . . Botnet 1 | . 1 . . . Fabricators . | . . . . . Repair Stations . | . . . . . Recycling Units . | . . . . . Scanalyzers . | . . . . . Garrison Access . | . . . . . Data Cores Recovered . | . . . . . Used . | . . . . . Hacking Detections 5 | . 2 . . 3 Full Trace Events 1 | . . . . 1 Feedback Events . | . . . . . Feedback Blocked . | . . . . . Robot Schematics Acquired . | . . . . . Robots Built . | . . . . . Authchips . | . . . . . Time . | . . . . . Total Robot Build Rating . | . . . . . Part Schematics Acquired . | . . . . . Parts Built . | . . . . . Authchips . | . . . . . Time . | . . . . . Total Part Build Rating . | . . . . . Part Studies Acquired 1 | . . . . 1 Parts Repaired . | . . . . . Time . | . . . . . Parts Recycled . | . . . . . Recycled Matter . | . . . . . Retrieved Matter . | . . . . . Retrieved Components . | . . . . . Parts Scanalyzed . | . . . . . Part Schematics Acquired . | . . . . . Parts Damaged . | . . . . . Bothacking | -11 -10 -10 -10 -8 ------------ Run | Yrd Mat Min Sub Mat Used RIF Installer . | . . . . . Robots Hacked . | . . . . . Non-combat . | . . . . . Combat . | . . . . . Robot Hacks Applied . | . . . . . Relay Couplers Released . | . . . . . Fabnet Peak Effective % . | . . . . . Robots Rewired . | . . . . . Allies Hacked . | . . . . . Hacks Repelled . | . . . . . Allies | -11 -10 -10 -10 -8 -------- Run | Yrd Mat Min Sub Mat Total Allies 1 | . 1 . . . Largest Group 1 | . 1 . . . Highest-Rated Group 10 | . 10 . . . Highest-Rated Ally 10 | . 10 . . . Total Orders . | . . . . . Ally Attacks . | . . . . . Total Damage . | . . . . . Kills . | . . . . . Allies Corrupted . | . . . . . Allies Melted . | . . . . . Intel | -11 -10 -10 -10 -8 ------- Run | Yrd Mat Min Sub Mat Active Infowar (turns) 721 | 45 196 141 228 111 Sensors 108 | . . . . 108 Terrain 374 | . . 35 228 111 Seismic 347 | 45 196 106 . . Robot Analysis Total . | . . . . . Derelict Logs Recovered 1 | . . . 1 . Drone Launches . | . . . . . Drone Recoveries . | . . . . . Exploration | -11 -10 -10 -10 -8 ------------- Run | Yrd Mat Min Sub Mat Turns Passed 805 | 118 196 152 228 111 Spaces Moved 761 | 71 179 139 266 106 Core 17 | 17 . . . . Treads . | . . . . . Legs . | . . . . . Wheels 744 | 54 179 139 266 106 Hover . | . . . . . Flight . | . . . . . Fastest Speed 50 | 50 80 80 80 70 Average Speed 79 | 72 80 80 80 79 Slowest Speed 85 | 80 80 80 80 85 Overloaded Moves . | . . . . . Propulsion Burnouts . | . . . . . Robots Hopped . | . . . . . Potential Cave-ins . | . . . . . Cave-ins Triggered . | . . . . . Exploration Rate (%) 22 | 5 42 41 14 12 Regions Visited 4 Branch Regions 2 Pre-discovered Areas . | . . . . . Known Exits Taken 1 | . 1 . . . Unknown Exits Taken 3 | 1 . 1 1 . Scrap Searched 4 | . . . 4 . Spaces Dug . | . . . . . Terrain Destroyed 1 | . 1 . . . Melee . | . . . . . Projectile 1 | . 1 . . . AOE . | . . . . . Terrain Rammed . | . . . . . Walls Destroyed . | . . . . . Machines Disabled . | . . . . . Actions | -11 -10 -10 -10 -8 --------- Run | Yrd Mat Min Sub Mat Total 888 | 112 209 169 277 121 Wait 41 | 11 8 14 5 3 Move 757 | 70 178 138 265 106 Hop . | . . . . . Pick Up 21 | 12 4 1 1 3 Fast Attach 5 | 2 . 1 1 1 Attach 9 | 5 . 1 . 3 Detach 1 | . . 1 . . Swap 8 | . 3 3 2 . Drop 11 | . 5 4 2 . Fire 35 | 12 11 6 1 5 Melee . | . . . . . Ram . | . . . . . Kick . | . . . . . Crush . | . . . . . Escape Stasis . | . . . . . Rewire . | . . . . . Trap . | . . . . . Miscellaneous . | . . . . . Route ------- -11/Scrapyard -10/Materials (discovered 2 exits: *Min x2) -10/Mines -10/Subcaves (discovered 2 exits: *Mat / [*Scr]) -8/Materials History --------- Turn | Location | Event 9 | -11/Scrapyard | Discovered new exit (range 15) 119 | -11/Scrapyard | Entered Materials 144 | -10/Materials | Identified exit to Mines 310 | -10/Materials | Build established: Mutant 315 | -10/Materials | Entered Mines 322 | -10/Mines | Received a Rocket Launcher from a helpful Derelict 345 | -10/Mines | Met a Derelict bent on vengeance 463 | -10/Mines | Discovered new exit (range 5) 467 | -10/Mines | Entered Subcaves 468 | -10/Subcaves | Approached by a straggling Scientist 614 | -10/Subcaves | A swath of the cavern ceiling suddenly collapsed 687 | -10/Subcaves | Discovered new exit (range 9) 695 | -10/Subcaves | Entered Materials 695 | -8/Materials | Evolved 4 slots: Utility x4 756 | -8/Materials | Central database locked down 806 | -8/Materials | Self-destructed Last Messages --------------- 00752_ Y-45 Defender destroyed. 00756_ Connecting with Scanalyzer... 00756_ Current location identified: Materials >>Study(Wheel) Identified Wheel... Downloading performance data... Effective improvements: -10 time/move 00756_ ALERT: Central database lockdown, local access denied. 00759_ Acquired Hvy. Assault Rifle. 00760_ Acquired 30 matter. 00768_ Y-45 Defender destroyed. 00776_ Acquired Lgt. Armor Plating. 00780_ Connecting with Terminal... 00780_ ALERT: Suspicious activity at Terminal M006. Dispatching Investigation squad. 00802_ T-07 Excavator is excavating. 00803_ Connecting with Terminal... 00803_ Y-45 Defender destroyed. Map ----- +----------------------------------------------------+ | | | | | | | | | | | | | | | | | | | | | | | | | | | | | ?????????????????????????????????????????????????? | | ????????????????????????????#?? ?????????????????? | | ??????????????????????????###????????????????????? | | ??????????????????????#?????#????????????????????? | | ???????????????#####??????????? ?????? ??????????? | | ???????????????#==||!????????????????????????????? | | ???????????????#==||!???????????????? ???????????? | | ???????????????# ????#?#??????? ????????????? | | ????????????????## #??????#???##???#??????????? | | ???????????????# # ############### ????????? | | ???????????????##t]=* T ????????? | | ?????????????????#!%! @ ????????? | | ?????????????????#=[[ # ????????? | | ??????????#??????#? ??# ????????? | | ????????????#???#?? ??# ????????? | | ????????????#?????????# ????????? | | ????????????#???#?????# """ """ """ ?????????? | | ?????????? ?????x? ???# """ """ """??????????? | | ?????????? ????????#??# """ """ """ ?????????? | | ???????????????? ??#?## ???????? | | ??????? ??? ??? ?#????# ???????? | | ?????? ??? ??? ?????## #######+## ?? ?????? | | ????????"???????????####+####????? #????????????? | | ??????? ???????? ??## #?? ? ?????????????? | | ???????????#???#????# """ #????? ?#??#????????? | | ??????????????#????## """ # ??? ?####??????#??? | | ???????????? ? ?? ## """ ##############??? ???? | | ???????????? ?? ??## #?# #?#??????? | | ??????????? ? ?? ??## """ # # ###?? ???? | | ?????????????#?? ??## """ ### """ ##??#??#?# | | ?????????????? ????## """ ###!""" #???#??##? | | ?????????"???" ?? ?## + +%""" # ???????? | | ????????????????????# "T" ###= "" # ?"?" ??? | | ????????????????????# """ ##% S"" # ?""" ?#? | | ?????????????? ?????## ######## "" # ???? #? | | ???????????#????? ################+##### ?? ??? | +----------------------------------------------------+ Best States ------------- Heat Dissipation 45 Energy Generation 14 Energy Capacity 250 Matter Stores 300 Matter Capacity 300 Sight Range 16 Robot Scan Range 14 Terrain Scan Range 16 Terrain Scan Density 85 Armor Coverage 150 Evasion (%) 50 Item Schematics ----------------- None Robot Schematics ------------------ None Fabricated ------------ Nothing Repaired ---------- Nothing Studied --------- Wheel | -8/Materials | Hacked Alien Tech Used ----------------- None Achievements -------------- None Challenges ------------ None Game ------ Seed SalvageLightMiniperforator Manual? 0 Play Time 00:20:32 Cumulative 239.2 hours Start 2025.11.03 @ 20:32:24 End 2025.11.04 @ 19:37:28 Sessions 1 Manual Loads 0 Difficulty Rogue Special Mode None Game No. 441 Rogue 441 Adventurer 0 Explorer 0 Win Type - Total 1 Types 1/0/0/0/0/0/0/0/0/0 Lore% 30 Gallery% 47 Achievement% 23 Wizard Run 0 Options --------- Layout 1 ASCII 0 Keyboard 1 Movement Vi Keybinds 0 Fullscreen 0 Font 20/Smallcaps Map View 59x39 Zoom Use 0% Tactical HUD 1 Map Filters NONE Filters NONE Steam 1 RUN: 8993192c-33ab-441b-be2f-798b38a2ddfd